[Event "*** Titled Tuesday Blitz"]
[Site "Chess.com"]
[Date "2020.05.19"]
[Round "7"]
[White "manitodeplomo"]
[Black "Andro2"]
[Result "1-0"]
[WhiteElo "2600"]
[BlackElo "2416"]
[TimeControl "180+1"]
[EndTime "13:20:54 PDT"]
[Termination "manitodeplomo won by checkmate"]

1. d4 {[%clk 0:03:00.8]} 1... e6 {[%clk 0:02:58.6]} 2. c4 {[%clk 0:02:51.4]}
2... b6 {[%clk 0:02:57.9]} 3. Nf3 {[%clk 0:02:48.9]} 3... Bb7 {[%clk 0:02:58]}
4. g3 {[%clk 0:02:49.4]} 4... Nf6 {[%clk 0:02:57.6]} 5. Bg2 {[%clk 0:02:48.9]}
5... Bb4+ {[%clk 0:02:54.5]} 6. Nbd2 {[%clk 0:02:48.6]} 6... O-O {[%clk
0:02:53.4]} 7. O-O {[%clk 0:02:47]} 7... d5 {[%clk 0:02:42.9]} 8. a3 {[%clk
0:02:44.5]} 8... Be7 {[%clk 0:02:42]} 9. b4 {[%clk 0:02:44.2]} 9... dxc4 {[%clk
0:02:40.9]} 10. Nxc4 {[%clk 0:02:43.5]} 10... Nbd7 {[%clk 0:02:40.4]} 11. Bf4
{[%clk 0:02:18.5]} 11... Nd5 {[%clk 0:02:23]} 12. Rc1 {[%clk 0:02:15.4]} 12...
Nxf4 {[%clk 0:02:20.8]} 13. gxf4 {[%clk 0:02:16.3]} 13... c5 {[%clk 0:02:12.6]}
14. dxc5 {[%clk 0:02:02.3]} 14... bxc5 {[%clk 0:02:12.7]} 15. b5 {[%clk
0:02:02.2]} 15... Nf6 {[%clk 0:02:01.5]} 16. e3 {[%clk 0:01:51]} 16... Nd5
{[%clk 0:01:56.3]} 17. a4 {[%clk 0:01:49]} 17... a6 {[%clk 0:01:52.6]} 18. Nfe5
{[%clk 0:01:40.8]} 18... axb5 {[%clk 0:01:51.6]} 19. axb5 {[%clk 0:01:41.7]}
19... Qc7 {[%clk 0:01:48]} 20. b6 {[%clk 0:01:37.3]} 20... Qc8 {[%clk
0:01:40.8]} 21. Qb3 {[%clk 0:01:34.5]} 21... Rd8 {[%clk 0:01:35.8]} 22. Ra1
{[%clk 0:01:30.4]} 22... Bf6 {[%clk 0:01:15.7]} 23. Ra7 {[%clk 0:01:29.4]} 23...
Rb8 {[%clk 0:01:06.9]} 24. Rfa1 {[%clk 0:01:03.8]} 24... Nb4 {[%clk 0:01:00.4]}
25. R1a5 {[%clk 0:00:43.1]} 25... Bxe5 {[%clk 0:00:50.5]} 26. fxe5 {[%clk
0:00:40.5]} 26... Bd5 {[%clk 0:00:42.3]} 27. Bxd5 {[%clk 0:00:34.8]} 27... exd5
{[%clk 0:00:40.2]} 28. Nd6 {[%clk 0:00:34.6]} 28... Qg4+ {[%clk 0:00:40.5]} 29.
Kf1 {[%clk 0:00:34.7]} 29... Rxb6 {[%clk 0:00:32.4]} 30. Rxc5 {[%clk 0:00:25.3]}
30... Qh3+ {[%clk 0:00:23.8]} 31. Ke2 {[%clk 0:00:22.3]} 31... Qh5+ {[%clk
0:00:18.8]} 32. Kf1 {[%clk 0:00:20.5]} 32... Qh3+ {[%clk 0:00:17.7]} 33. Ke2
{[%clk 0:00:20.1]} 33... Qh5+ {[%clk 0:00:16.4]} 34. Kf1 {[%clk 0:00:20]} 34...
Rdb8 {[%clk 0:00:14.6]} 35. Rc8+ {[%clk 0:00:16.6]} 35... Rxc8 {[%clk
0:00:13.7]} 36. Nxc8 {[%clk 0:00:17.2]} 36... Qh3+ {[%clk 0:00:13.1]} 37. Ke2
{[%clk 0:00:17.1]} 37... Qh5+ {[%clk 0:00:12.1]} 38. Ke1 {[%clk 0:00:16.2]}
38... Rc6 {[%clk 0:00:08.2]} 39. Ne7+ {[%clk 0:00:14.3]} 39... Kf8 {[%clk
0:00:08.4]} 40. Nxc6 {[%clk 0:00:14.5]} 40... g6 {[%clk 0:00:07.9]} 41. Qxb4+
{[%clk 0:00:14]} 41... Kg7 {[%clk 0:00:07.3]} 42. Qf4 {[%clk 0:00:14.4]} 42...
Qh3 {[%clk 0:00:04.7]} 43. Qf6+ {[%clk 0:00:14.2]} 43... Kh6 {[%clk 0:00:05]}
44. Rxf7 {[%clk 0:00:11.7]} 44... Qg2 {[%clk 0:00:02.2]} 45. Qh4# {[%clk
0:00:08.6]} 1-0

[Event "*** Titled Tuesday Blitz"]
[Site "Chess.com"]
[Date "2020.05.19"]
[Round "7"]
[White "Vegan4future"]
[Black "FontVella8"]
[Result "0-1"]
[WhiteElo "2382"]
[BlackElo "2541"]
[TimeControl "180+1"]
[EndTime "13:20:54 PDT"]
[Termination "FontVella8 won by checkmate"]

1. e4 {[%clk 0:03:00.9]} 1... c6 {[%clk 0:03:00]} 2. Nc3 {[%clk 0:02:58.3]} 2...
d5 {[%clk 0:02:58.6]} 3. Qf3 {[%clk 0:02:58.9]} 3... dxe4 {[%clk 0:02:57.8]} 4.
Nxe4 {[%clk 0:02:59.8]} 4... Nf6 {[%clk 0:02:57.9]} 5. Nxf6+ {[%clk 0:02:59.6]}
5... exf6 {[%clk 0:02:57.7]} 6. c3 {[%clk 0:03:00.5]} 6... Bd6 {[%clk
0:02:57.4]} 7. d4 {[%clk 0:03:01.1]} 7... O-O {[%clk 0:02:57.1]} 8. Bd3 {[%clk
0:03:01.8]} 8... Qc7 {[%clk 0:02:55.7]} 9. Ne2 {[%clk 0:03:02.7]} 9... Nd7
{[%clk 0:02:54.1]} 10. Bf4 {[%clk 0:03:01.6]} 10... Re8 {[%clk 0:02:52.8]} 11.
O-O {[%clk 0:02:59.6]} 11... Nf8 {[%clk 0:02:50]} 12. Rae1 {[%clk 0:02:58.1]}
12... Bd7 {[%clk 0:02:48.7]} 13. Bxd6 {[%clk 0:02:57.1]} 13... Qxd6 {[%clk
0:02:48.6]} 14. Ng3 {[%clk 0:02:57.7]} 14... Ng6 {[%clk 0:02:42.7]} 15. Ne4
{[%clk 0:02:57]} 15... Qc7 {[%clk 0:02:39.7]} 16. Nc5 {[%clk 0:02:56.7]} 16...
b6 {[%clk 0:02:37.6]} 17. Nxd7 {[%clk 0:02:50.1]} 17... Qxd7 {[%clk 0:02:37.5]}
18. Be4 {[%clk 0:02:40.8]} 18... Ne7 {[%clk 0:02:23.2]} 19. h4 {[%clk
0:02:24.1]} 19... f5 {[%clk 0:02:20.4]} 20. Bc2 {[%clk 0:02:18.3]} 20... g6
{[%clk 0:02:20.4]} 21. h5 {[%clk 0:02:17.4]} 21... Kg7 {[%clk 0:02:18.3]} 22.
Qf4 {[%clk 0:02:13.5]} 22... Nd5 {[%clk 0:02:18.2]} 23. h6+ {[%clk 0:02:13.6]}
23... Kg8 {[%clk 0:02:18.4]} 24. Qh4 {[%clk 0:02:07.3]} 24... Rxe1 {[%clk
0:02:11.8]} 25. Rxe1 {[%clk 0:02:07]} 25... Re8 {[%clk 0:02:12.3]} 26. Rxe8+
{[%clk 0:01:37.5]} 26... Qxe8 {[%clk 0:02:13.2]} 27. Qg5 {[%clk 0:01:33.6]}
27... Qe7 {[%clk 0:02:10.3]} 28. Qg3 {[%clk 0:01:14.8]} 28... f4 {[%clk
0:01:41.7]} 29. Qg4 {[%clk 0:01:14.8]} 29... Qe6 {[%clk 0:01:41.9]} 30. Qxe6
{[%clk 0:01:07.3]} 30... fxe6 {[%clk 0:01:41.8]} 31. a3 {[%clk 0:01:08.2]} 31...
Kf7 {[%clk 0:01:39.7]} 32. c4 {[%clk 0:01:07.6]} 32... Nf6 {[%clk 0:01:35.6]}
33. f3 {[%clk 0:01:06.1]} 33... Ng8 {[%clk 0:01:33.7]} 34. b4 {[%clk 0:01:02.7]}
34... Nxh6 {[%clk 0:01:32.6]} 35. Be4 {[%clk 0:00:59.3]} 35... Nf5 {[%clk
0:01:28.7]} 36. c5 {[%clk 0:00:49.2]} 36... Nxd4 {[%clk 0:01:25.5]} 37. cxb6
{[%clk 0:00:49.7]} 37... axb6 {[%clk 0:01:26]} 38. a4 {[%clk 0:00:50.5]} 38...
Ke7 {[%clk 0:01:24.6]} 39. a5 {[%clk 0:00:49.9]} 39... bxa5 {[%clk 0:01:24.6]}
40. bxa5 {[%clk 0:00:50.8]} 40... Kd6 {[%clk 0:01:24.6]} 41. Kh2 {[%clk
0:00:51]} 41... Kc5 {[%clk 0:01:18.4]} 42. Kh3 {[%clk 0:00:49.3]} 42... Kb5
{[%clk 0:01:14.9]} 43. Kh4 {[%clk 0:00:11.7]} 43... c5 {[%clk 0:00:59]} 44. Kg5
{[%clk 0:00:12.6]} 44... c4 {[%clk 0:00:43.2]} 45. Kxf4 {[%clk 0:00:12.9]} 45...
Kxa5 {[%clk 0:00:43]} 46. Ke5 {[%clk 0:00:12.8]} 46... Ne2 {[%clk 0:00:36.4]}
47. Kxe6 {[%clk 0:00:13.1]} 47... Nf4+ {[%clk 0:00:36.4]} 48. Kf6 {[%clk
0:00:13.5]} 48... Nxg2 {[%clk 0:00:36.5]} 49. Kg7 {[%clk 0:00:14]} 49... h5
{[%clk 0:00:32.3]} 50. Bxg6 {[%clk 0:00:11.1]} 50... h4 {[%clk 0:00:32]} 51. Bf5
{[%clk 0:00:10.9]} 51... c3 {[%clk 0:00:31.3]} 52. Kf6 {[%clk 0:00:11.4]} 52...
h3 {[%clk 0:00:31.1]} 53. Bxh3 {[%clk 0:00:10.8]} 53... c2 {[%clk 0:00:31]} 54.
Bxg2 {[%clk 0:00:11.3]} 54... c1=Q {[%clk 0:00:31]} 55. Kf5 {[%clk 0:00:12.2]}
55... Qc5+ {[%clk 0:00:29.9]} 56. Ke4 {[%clk 0:00:12.2]} 56... Kb6 {[%clk
0:00:29.8]} 57. Bh3 {[%clk 0:00:12.5]} 57... Kc7 {[%clk 0:00:30.1]} 58. Bg4
{[%clk 0:00:13.4]} 58... Kd6 {[%clk 0:00:30.5]} 59. Kf4 {[%clk 0:00:13.8]} 59...
Qe5# {[%clk 0:00:30.3]} 0-1

[Event "*** Titled Tuesday Blitz"]
[Site "Chess.com"]
[Date "2020.05.19"]
[Round "7"]
[White "Everyfishknows"]
[Black "aaronmaster123"]
[Result "0-1"]
[WhiteElo "2374"]
[BlackElo "2262"]
[TimeControl "180+1"]
[EndTime "13:20:54 PDT"]
[Termination "aaronmaster123 won by resignation"]

1. e4 {[%clk 0:03:00.9]} 1... c5 {[%clk 0:02:59.2]} 2. Nf3 {[%clk 0:02:56.1]}
2... Nc6 {[%clk 0:02:54.6]} 3. Bb5 {[%clk 0:02:52.6]} 3... g6 {[%clk 0:02:52.2]}
4. O-O {[%clk 0:02:50.9]} 4... Bg7 {[%clk 0:02:52]} 5. Re1 {[%clk 0:02:47.3]}
5... Qb6 {[%clk 0:02:45.6]} 6. Bf1 {[%clk 0:02:40.8]} 6... d6 {[%clk 0:02:40.7]}
7. Nc3 {[%clk 0:01:49.2]} 7... Bg4 {[%clk 0:02:40.6]} 8. Nd5 {[%clk 0:01:44.7]}
8... Qd8 {[%clk 0:02:40.2]} 9. c3 {[%clk 0:01:43.5]} 9... Ne5 {[%clk 0:02:22.4]}
10. d4 {[%clk 0:00:40.5]} 10... cxd4 {[%clk 0:02:16.2]} 11. cxd4 {[%clk
0:00:33.4]} 11... Nxf3+ {[%clk 0:02:14]} 12. gxf3 {[%clk 0:00:34.3]} 12... Bd7
{[%clk 0:02:12.8]} 13. Be3 {[%clk 0:00:31.4]} 13... Nf6 {[%clk 0:02:12.5]} 14.
Nxf6+ {[%clk 0:00:27.7]} 14... Bxf6 {[%clk 0:02:09.3]} 15. Qb3 {[%clk
0:00:25.3]} 15... Qb6 {[%clk 0:02:01.8]} 16. Qxb6 {[%clk 0:00:19.8]} 16... axb6
{[%clk 0:02:02.7]} 17. a3 {[%clk 0:00:19.5]} 17... O-O {[%clk 0:01:54.8]} 18.
Rac1 {[%clk 0:00:19.2]} 18... Rfc8 {[%clk 0:01:53.2]} 19. f4 {[%clk 0:00:16.9]}
19... b5 {[%clk 0:01:36.5]} 20. e5 {[%clk 0:00:15]} 20... Bg7 {[%clk 0:01:35.2]}
21. Bd3 {[%clk 0:00:13.2]} 21... Kf8 {[%clk 0:01:26]} 22. Kf1 {[%clk 0:00:13]}
22... Ke8 {[%clk 0:01:24.9]} 23. Ke2 {[%clk 0:00:13.2]} 23... f6 {[%clk
0:01:13.7]} 24. e6 {[%clk 0:00:06.3]} 24... Bxe6 {[%clk 0:01:12.9]} 25. Bxb5+
{[%clk 0:00:06.4]} 25... Bd7 {[%clk 0:01:13]} 26. Bxd7+ {[%clk 0:00:04.8]} 26...
Kxd7 {[%clk 0:01:12.7]} 27. d5 {[%clk 0:00:05.4]} 27... Rxc1 {[%clk 0:01:06.5]}
28. Rxc1 {[%clk 0:00:05.1]} 28... Rc8 {[%clk 0:01:07]} 29. Rxc8 {[%clk
0:00:04.8]} 29... Kxc8 {[%clk 0:01:07.9]} 30. f5 {[%clk 0:00:03]} 30... gxf5
{[%clk 0:01:06.5]} 31. Bf4 {[%clk 0:00:03.4]} 31... Kd7 {[%clk 0:01:06.5]} 32.
Kd3 {[%clk 0:00:03.1]} 32... e6 {[%clk 0:00:59]} 33. dxe6+ {[%clk 0:00:04]}
33... Kxe6 {[%clk 0:00:59.1]} 34. Kd4 {[%clk 0:00:04.5]} 34... Bf8 {[%clk
0:00:57.7]} 35. a4 {[%clk 0:00:04.5]} 35... d5 {[%clk 0:00:56.9]} 36. b3 {[%clk
0:00:04.7]} 36... Bb4 {[%clk 0:00:52.7]} 37. h3 {[%clk 0:00:04.3]} 37... h5
{[%clk 0:00:52.1]} 38. f3 {[%clk 0:00:04]} 38... Ba3 {[%clk 0:00:45.4]} 39. Bd2
{[%clk 0:00:03.5]} 39... Bd6 {[%clk 0:00:44.5]} 40. b4 {[%clk 0:00:03.3]} 40...
b6 {[%clk 0:00:38.1]} 41. b5 {[%clk 0:00:02.6]} 41... Bc5+ {[%clk 0:00:37.4]}
42. Kd3 {[%clk 0:00:03]} 42... Ke5 {[%clk 0:00:36.9]} 43. a5 {[%clk 0:00:03.3]}
43... bxa5 {[%clk 0:00:35.2]} 44. Bxa5 {[%clk 0:00:04.2]} 44... Kf4 {[%clk
0:00:33.1]} 45. Bc7+ {[%clk 0:00:04.2]} 45... Kxf3 {[%clk 0:00:32.3]} 46. b6
{[%clk 0:00:04.9]} 46... Bxb6 {[%clk 0:00:31.9]} 47. Bxb6 {[%clk 0:00:05.8]}
47... Kg3 {[%clk 0:00:31]} 48. Kd4 {[%clk 0:00:05.9]} 48... Kxh3 {[%clk
0:00:28.2]} 49. Kxd5 {[%clk 0:00:06.3]} 49... f4 {[%clk 0:00:27.3]} 50. Ke4
{[%clk 0:00:06.4]} 50... Kg4 {[%clk 0:00:25.1]} 51. Kd3 {[%clk 0:00:04.9]} 51...
Kf3 {[%clk 0:00:22.4]} 52. Bd8 {[%clk 0:00:05.2]} 52... h4 {[%clk 0:00:18.4]}
53. Bxf6 {[%clk 0:00:05]} 53... h3 {[%clk 0:00:18.7]} 0-1

[Event "*** Titled Tuesday Blitz"]
[Site "Chess.com"]
[Date "2020.05.19"]
[Round "7"]
[White "Nayemhaque22"]
[Black "Ranindu2003"]
[Result "1/2-1/2"]
[WhiteElo "2193"]
[BlackElo "2451"]
[TimeControl "180+1"]
[EndTime "13:20:56 PDT"]
[Termination "Game drawn by repetition"]

1. e4 {[%clk 0:03:00.9]} 1... g6 {[%clk 0:02:59.5]} 2. d4 {[%clk 0:03:00.4]}
2... Bg7 {[%clk 0:02:59.5]} 3. f4 {[%clk 0:02:59.2]} 3... d6 {[%clk 0:02:59.1]}
4. Nc3 {[%clk 0:02:58.3]} 4... a6 {[%clk 0:02:59.4]} 5. Bd3 {[%clk 0:02:58.2]}
5... b5 {[%clk 0:02:58.9]} 6. Nf3 {[%clk 0:02:55.5]} 6... Bb7 {[%clk 0:02:59]}
7. Be3 {[%clk 0:02:52.2]} 7... Nd7 {[%clk 0:02:57.3]} 8. Qe2 {[%clk 0:02:49.3]}
8... Ngf6 {[%clk 0:02:56.3]} 9. e5 {[%clk 0:02:45.9]} 9... Ng4 {[%clk
0:02:48.7]} 10. e6 {[%clk 0:02:34.7]} 10... fxe6 {[%clk 0:02:31.6]} 11. Ng5
{[%clk 0:02:33.4]} 11... Nxe3 {[%clk 0:02:27]} 12. Qxe3 {[%clk 0:02:32.2]} 12...
Nf8 {[%clk 0:02:22.1]} 13. Nxe6 {[%clk 0:02:23.4]} 13... Nxe6 {[%clk 0:02:20.7]}
14. Qxe6 {[%clk 0:02:23.1]} 14... Qd7 {[%clk 0:02:18.1]} 15. Bxg6+ {[%clk
0:01:51.6]} 15... hxg6 {[%clk 0:02:15.4]} 16. Qxg6+ {[%clk 0:01:52.5]} 16... Kf8
{[%clk 0:02:14.8]} 17. O-O-O {[%clk 0:01:48.2]} 17... b4 {[%clk 0:02:05.4]} 18.
Ne2 {[%clk 0:01:33.8]} 18... Rh6 {[%clk 0:01:58]} 19. Qg5 {[%clk 0:01:20.8]}
19... Be4 {[%clk 0:01:03.8]} 20. Ng3 {[%clk 0:01:01.2]} 20... Bh7 {[%clk
0:00:44.8]} 21. f5 {[%clk 0:00:47.7]} 21... Rf6 {[%clk 0:00:35.5]} 22. Kb1
{[%clk 0:00:47.2]} 22... Bxf5 {[%clk 0:00:31.6]} 23. Nxf5 {[%clk 0:00:35]} 23...
Qxf5 {[%clk 0:00:28.3]} 24. Qd2 {[%clk 0:00:28.3]} 24... Rb8 {[%clk 0:00:25.8]}
25. h4 {[%clk 0:00:27]} 25... Bh6 {[%clk 0:00:25.4]} 26. Qe2 {[%clk 0:00:22.3]}
26... Re6 {[%clk 0:00:15.3]} 27. Qc4 {[%clk 0:00:19.2]} 27... Rf6 {[%clk
0:00:10.9]} 28. g4 {[%clk 0:00:17.1]} 28... Qxg4 {[%clk 0:00:10.2]} 29. Rhg1
{[%clk 0:00:16.3]} 29... Qe6 {[%clk 0:00:10.9]} 30. d5 {[%clk 0:00:14.1]} 30...
Qf7 {[%clk 0:00:10.8]} 31. Qxc7 {[%clk 0:00:13.2]} 31... Re8 {[%clk 0:00:08.5]}
32. Qc6 {[%clk 0:00:09.8]} 32... a5 {[%clk 0:00:08.3]} 33. Qb5 {[%clk
0:00:08.5]} 33... Rg6 {[%clk 0:00:05.6]} 34. Rgf1 {[%clk 0:00:07.5]} 34... Rf6
{[%clk 0:00:05.9]} 35. Rg1 {[%clk 0:00:07.5]} 35... Rg6 {[%clk 0:00:02.5]} 36.
Rgf1 {[%clk 0:00:03.1]} 36... Rf6 {[%clk 0:00:03.4]} 37. Rg1 {[%clk 0:00:02.9]}
1/2-1/2

[Event "*** Titled Tuesday Blitz"]
[Site "Chess.com"]
[Date "2020.05.19"]
[Round "7"]
[White "allvim"]
[Black "Margarita2907"]
[Result "0-1"]
[WhiteElo "2242"]
[BlackElo "2039"]
[TimeControl "180+1"]
[EndTime "13:20:56 PDT"]
[Termination "Margarita2907 won on time"]

1. e4 {[%clk 0:03:00.9]} 1... c5 {[%clk 0:02:59.3]} 2. Nf3 {[%clk 0:02:51.8]}
2... d6 {[%clk 0:02:59.5]} 3. d4 {[%clk 0:02:50.8]} 3... cxd4 {[%clk 0:03:00.4]}
4. Nxd4 {[%clk 0:02:51.7]} 4... Nf6 {[%clk 0:03:00]} 5. Nc3 {[%clk 0:02:52.3]}
5... a6 {[%clk 0:02:59.6]} 6. Be3 {[%clk 0:02:52.1]} 6... e5 {[%clk 0:02:57.8]}
7. Nb3 {[%clk 0:02:52.5]} 7... Be7 {[%clk 0:02:58.4]} 8. f3 {[%clk 0:02:52.9]}
8... Be6 {[%clk 0:02:57.4]} 9. Qd2 {[%clk 0:02:53.3]} 9... Nbd7 {[%clk
0:02:56.3]} 10. O-O-O {[%clk 0:02:53.9]} 10... O-O {[%clk 0:02:56.2]} 11. g4
{[%clk 0:02:53.1]} 11... b5 {[%clk 0:02:53.8]} 12. h4 {[%clk 0:02:52.2]} 12...
b4 {[%clk 0:02:52.2]} 13. Nd5 {[%clk 0:02:52.5]} 13... Bxd5 {[%clk 0:02:49.3]}
14. exd5 {[%clk 0:02:53.4]} 14... Nb6 {[%clk 0:02:47.6]} 15. Bxb6 {[%clk
0:02:52.1]} 15... Qxb6 {[%clk 0:02:46.9]} 16. h5 {[%clk 0:02:52.8]} 16... a5
{[%clk 0:02:37.9]} 17. g5 {[%clk 0:02:53.1]} 17... Nd7 {[%clk 0:02:37.4]} 18.
Kb1 {[%clk 0:02:52.8]} 18... a4 {[%clk 0:02:36.3]} 19. Nc1 {[%clk 0:02:53.5]}
19... f5 {[%clk 0:02:19.3]} 20. Rh4 {[%clk 0:02:20.8]} 20... f4 {[%clk
0:02:11.7]} 21. Bh3 {[%clk 0:02:10.9]} 21... Nc5 {[%clk 0:02:09.2]} 22. Nd3
{[%clk 0:02:06.6]} 22... Nxd3 {[%clk 0:02:00.1]} 23. Qxd3 {[%clk 0:02:04]} 23...
Bxg5 {[%clk 0:01:58.4]} 24. Be6+ {[%clk 0:01:50.6]} 24... Kh8 {[%clk 0:01:58.3]}
25. Rg4 {[%clk 0:01:40.9]} 25... Bf6 {[%clk 0:01:48.9]} 26. h6 {[%clk
0:01:31.6]} 26... g6 {[%clk 0:01:48.2]} 27. Rdg1 {[%clk 0:01:19.9]} 27... a3
{[%clk 0:01:44.1]} 28. b3 {[%clk 0:00:21.8]} 28... Ra7 {[%clk 0:01:32.6]} 29.
Rxg6 {[%clk 0:00:19.3]} 29... hxg6 {[%clk 0:01:31.6]} 30. Qxg6 {[%clk
0:00:20.2]} 30... Qd4 {[%clk 0:01:17.5]} 31. Kc1 {[%clk 0:00:17.3]} 31... Qe3+
{[%clk 0:00:56]} 32. Kb1 {[%clk 0:00:15]} 32... Qc3 {[%clk 0:00:33.8]} 33. Kc1
{[%clk 0:00:14.7]} 33... e4 {[%clk 0:00:20.4]} 34. h7 {[%clk 0:00:13.3]} 34...
Qb2+ {[%clk 0:00:14.6]} 35. Kd1 {[%clk 0:00:11.3]} 35... Rg7 {[%clk 0:00:05.4]}
36. Kd2 {[%clk 0:00:03]} 36... Rxg6 {[%clk 0:00:04.7]} 37. Rxg6 {[%clk
0:00:03.9]} 37... Qd4+ {[%clk 0:00:04.5]} 38. Kc1 {[%clk 0:00:03.2]} 38... Kxh7
{[%clk 0:00:04.2]} 39. Rg4 {[%clk 0:00:02]} 39... Qe3+ {[%clk 0:00:04.4]} 0-1

[Event "*** Titled Tuesday Blitz"]
[Site "Chess.com"]
[Date "2020.05.19"]
[Round "7"]
[White "imdarealist"]
[Black "kot60"]
[Result "1-0"]
[WhiteElo "2251"]
[BlackElo "2359"]
[TimeControl "180+1"]
[EndTime "13:20:57 PDT"]
[Termination "imdarealist won on time"]

1. d4 {[%clk 0:03:00.9]} 1... Nf6 {[%clk 0:02:59.4]} 2. Bf4 {[%clk 0:03:00.6]}
2... g6 {[%clk 0:02:58.9]} 3. e3 {[%clk 0:03:00.7]} 3... Bg7 {[%clk 0:02:59]} 4.
Nf3 {[%clk 0:03:01.1]} 4... O-O {[%clk 0:02:58.8]} 5. h3 {[%clk 0:03:01.2]} 5...
d6 {[%clk 0:02:58.7]} 6. c3 {[%clk 0:03:01.8]} 6... b6 {[%clk 0:02:59.1]} 7. Be2
{[%clk 0:03:00]} 7... Bb7 {[%clk 0:02:59.5]} 8. O-O {[%clk 0:03:00.1]} 8... Nbd7
{[%clk 0:03:00]} 9. Bh2 {[%clk 0:02:58.3]} 9... c5 {[%clk 0:02:56.5]} 10. a4
{[%clk 0:02:58.4]} 10... a6 {[%clk 0:02:55.5]} 11. Qb3 {[%clk 0:02:57]} 11...
Ne4 {[%clk 0:02:48.8]} 12. Rd1 {[%clk 0:02:38.6]} 12... Qc7 {[%clk 0:02:47.3]}
13. Qa3 {[%clk 0:02:18.8]} 13... Rfb8 {[%clk 0:02:39.2]} 14. b4 {[%clk
0:02:18.5]} 14... b5 {[%clk 0:02:19.2]} 15. bxc5 {[%clk 0:02:15.1]} 15... Qc6
{[%clk 0:02:02.7]} 16. cxd6 {[%clk 0:01:49.2]} 16... exd6 {[%clk 0:02:01.8]} 17.
Ne1 {[%clk 0:01:40]} 17... Rc8 {[%clk 0:01:53.3]} 18. Bf3 {[%clk 0:01:32.6]}
18... d5 {[%clk 0:01:48.1]} 19. Nd3 {[%clk 0:01:28.3]} 19... Nb6 {[%clk
0:01:34.3]} 20. Bxe4 {[%clk 0:01:06.3]} 20... dxe4 {[%clk 0:01:33.7]} 21. Ne5
{[%clk 0:01:00.1]} 21... Bxe5 {[%clk 0:01:32.6]} 22. Bxe5 {[%clk 0:00:57.3]}
22... Nc4 {[%clk 0:01:28]} 23. Qe7 {[%clk 0:00:53]} 23... Re8 {[%clk 0:01:21.2]}
24. Qf6 {[%clk 0:00:53.4]} 24... Nxe5 {[%clk 0:01:19.3]} 25. dxe5 {[%clk
0:00:50.1]} 25... Re6 {[%clk 0:01:11.7]} 26. Rd8+ {[%clk 0:00:45.1]} 26... Rxd8
{[%clk 0:01:10.9]} 27. Qxd8+ {[%clk 0:00:46]} 27... Kg7 {[%clk 0:01:11.2]} 28.
axb5 {[%clk 0:00:40]} 28... Qxb5 {[%clk 0:01:08.5]} 29. Nd2 {[%clk 0:00:36.8]}
29... Qxe5 {[%clk 0:01:00.9]} 30. Qd4 {[%clk 0:00:30]} 30... Kg8 {[%clk
0:00:59.2]} 31. Nc4 {[%clk 0:00:27.3]} 31... Qc7 {[%clk 0:00:55.1]} 32. Rb1
{[%clk 0:00:21.8]} 32... Bc8 {[%clk 0:00:39]} 33. h4 {[%clk 0:00:20.4]} 33...
Rc6 {[%clk 0:00:33.9]} 34. Ne5 {[%clk 0:00:15.7]} 34... Rxc3 {[%clk 0:00:30.2]}
35. h5 {[%clk 0:00:16]} 35... Rc1+ {[%clk 0:00:23.2]} 36. Rxc1 {[%clk 0:00:16]}
36... Qxc1+ {[%clk 0:00:22.8]} 37. Kh2 {[%clk 0:00:16.5]} 37... Qc7 {[%clk
0:00:21.3]} 38. h6 {[%clk 0:00:15]} 38... f6 {[%clk 0:00:17.1]} 39. Qd5+ {[%clk
0:00:08.5]} 39... Kh8 {[%clk 0:00:15.2]} 40. Kg1 {[%clk 0:00:03.4]} 40... fxe5
{[%clk 0:00:13.4]} 41. g4 {[%clk 0:00:02]} 41... Bxg4 {[%clk 0:00:09]} 42. Qa8+
{[%clk 0:00:02.4]} 42... Bc8 {[%clk 0:00:04.3]} 43. Qd5 {[%clk 0:00:03.3]} 43...
Qe7 {[%clk 0:00:01.1]} 44. Qxe4 {[%clk 0:00:03.6]} 1-0

[Event "*** Titled Tuesday Blitz"]
[Site "Chess.com"]
[Date "2020.05.19"]
[Round "7"]
[White "WanderingPuppet"]
[Black "Korchmar_Vasiliy"]
[Result "0-1"]
[WhiteElo "2343"]
[BlackElo "2616"]
[TimeControl "180+1"]
[EndTime "13:20:58 PDT"]
[Termination "Korchmar_Vasiliy won on time"]

1. e4 {[%clk 0:03:00.9]} 1... c5 {[%clk 0:03:00]} 2. Nf3 {[%clk 0:03:00.7]} 2...
d6 {[%clk 0:03:00.6]} 3. d4 {[%clk 0:03:01]} 3... cxd4 {[%clk 0:03:01.5]} 4.
Nxd4 {[%clk 0:03:01.6]} 4... Nf6 {[%clk 0:03:02.2]} 5. Nc3 {[%clk 0:03:02.2]}
5... Nc6 {[%clk 0:03:02.8]} 6. Bg5 {[%clk 0:03:01.8]} 6... e6 {[%clk 0:03:03.3]}
7. Qd2 {[%clk 0:03:01.6]} 7... a6 {[%clk 0:03:03.9]} 8. O-O-O {[%clk 0:03:01.9]}
8... h6 {[%clk 0:03:04.4]} 9. Be3 {[%clk 0:03:00.4]} 9... Be7 {[%clk 0:03:04]}
10. Be2 {[%clk 0:02:59.2]} 10... Nxd4 {[%clk 0:03:03.9]} 11. Qxd4 {[%clk
0:02:57.2]} 11... b5 {[%clk 0:03:04.8]} 12. g4 {[%clk 0:02:56.1]} 12... Bb7
{[%clk 0:02:57.7]} 13. f3 {[%clk 0:02:48.3]} 13... d5 {[%clk 0:02:36.5]} 14.
exd5 {[%clk 0:02:15.8]} 14... Nxd5 {[%clk 0:02:37.4]} 15. Nxd5 {[%clk
0:02:04.7]} 15... Bxd5 {[%clk 0:02:38.3]} 16. Kb1 {[%clk 0:01:41.7]} 16... O-O
{[%clk 0:02:35.6]} 17. h4 {[%clk 0:01:37.3]} 17... Qa5 {[%clk 0:02:23.4]} 18. a3
{[%clk 0:01:21.2]} 18... b4 {[%clk 0:02:19.8]} 19. Bd2 {[%clk 0:01:13.7]} 19...
Rab8 {[%clk 0:02:12.1]} 20. g5 {[%clk 0:01:01.5]} 20... Rfd8 {[%clk 0:01:41.4]}
21. Bxb4 {[%clk 0:00:39.1]} 21... Bxb4 {[%clk 0:01:31.7]} 22. axb4 {[%clk
0:00:30.5]} 22... Rxb4 {[%clk 0:01:28.2]} 23. c4 {[%clk 0:00:29.4]} 23... Rdb8
{[%clk 0:00:30.9]} 24. Rd2 {[%clk 0:00:20.6]} 24... Bxc4 {[%clk 0:00:15.7]} 25.
Bxc4 {[%clk 0:00:18.4]} 25... Rxc4 {[%clk 0:00:16.1]} 26. Qxc4 {[%clk
0:00:09.5]} 26... Qxd2 {[%clk 0:00:16.3]} 27. Qc2 {[%clk 0:00:06.9]} 27... Qf4
{[%clk 0:00:16.3]} 28. gxh6 {[%clk 0:00:06.4]} 28... Qxh6 {[%clk 0:00:16.6]} 29.
h5 {[%clk 0:00:05.4]} 29... a5 {[%clk 0:00:14.1]} 30. Qc7 {[%clk 0:00:04.2]}
30... Ra8 {[%clk 0:00:10.6]} 31. Qb7 {[%clk 0:00:03.7]} 31... Rf8 {[%clk
0:00:10.2]} 32. Qb5 {[%clk 0:00:02.8]} 32... Qd2 {[%clk 0:00:06.1]} 33. Rg1
{[%clk 0:00:01.7]} 33... Kh7 {[%clk 0:00:05]} 34. h6 {[%clk 0:00:01.9]} 34...
gxh6 {[%clk 0:00:04.7]} 35. Rh1 {[%clk 0:00:02.2]} 35... Rg8 {[%clk 0:00:04.6]}
36. Qh5 {[%clk 0:00:02.2]} 36... Rg6 {[%clk 0:00:04.3]} 37. Qh4 {[%clk
0:00:01.8]} 37... Qe3 {[%clk 0:00:04.7]} 38. Qh3 {[%clk 0:00:02]} 38... Qd3+
{[%clk 0:00:05]} 39. Ka1 {[%clk 0:00:01.9]} 39... a4 {[%clk 0:00:05.6]} 40. Qh4
{[%clk 0:00:02.2]} 40... a3 {[%clk 0:00:05.8]} 41. bxa3 {[%clk 0:00:03.1]} 41...
Qxa3+ {[%clk 0:00:06.3]} 42. Kb1 {[%clk 0:00:03.6]} 42... e5 {[%clk 0:00:06.7]}
43. Qd8 {[%clk 0:00:02.3]} 43... Qb3+ {[%clk 0:00:06.3]} 44. Kc1 {[%clk
0:00:01.3]} 44... Rc6+ {[%clk 0:00:06.6]} 45. Kd2 {[%clk 0:00:01.2]} 45... Rc2+
{[%clk 0:00:06.9]} 0-1